fUSD/lending_fUSD_20260116
["ID","MTS","AMOUNT","RATE_DAILY","PERIOD"]
[402185064,1768575041197,-1680.0,0.00017298,2]
[402185065,1768575041206,-300.0,0.00017312,2]
[402185067,1768575041216,-2500.0,0.00017312,2]
[402185069,1768575041225,-250.0,0.00017312,2]
[402185071,1768575041235,-195.0,0.00017312,2]
[402185072,1768575041243,-319.0,0.00017319,2]
[402185074,1768575041253,-250.67139014,0.00017422,2]
[402185076,1768575041262,-195.0,0.00017422,2]
[402185078,1768575041272,-280.21079314,0.00017422,2]
[402185080,1768575041282,-250.0,0.00017423,2]
[402185081,1768575041294,-150.0,0.00017432,2]
[402185083,1768575041304,-4038.79080693,0.00017477,2]
[402185085,1768575041313,-150.0,0.00017487,2]
[402185087,1768575041322,-1504.0,0.000175,2]
[402185088,1768575041332,-500.0,0.00017531,2]
[402185090,1768575041341,-595.37131296,0.00017538,2]
[402185092,1768575041350,-1044.59,0.00017538,2]
[402185094,1768575041360,-150.0,0.00017542,2]
[402185095,1768575041370,-180.0,0.00017573,2]
[402185097,1768575041379,-150.14666215,0.00017596,2]
[402185099,1768575041389,-165.51315466,0.0001764,2]
[402185101,1768575041398,-4038.79080693,0.00017689,2]
[402185103,1768575041408,-1000.0,0.00017709,2]
[402185105,1768575041417,-859.37,0.00017755,2]
[402185106,1768575041428,-1660.0,0.000178,2]
[402185108,1768575041437,-500.0,0.00017805,2]
[402185110,1768575041447,-168.0,0.00017812,2]
[402185112,1768575041458,-1044.59,0.00017812,2]
[402185113,1768575041467,-839.29472,0.0001782,2]
[402185115,1768575041476,-839.29473,0.0001782,2]
[402185117,1768575041486,-2000.0,0.0001783,2]
[402185119,1768575041495,-485.2485,0.00017862,14]
[402185121,1768575041506,-2000.0,0.0001788,2]
[402185123,1768575041515,-1362.3845,0.000179,2]
[402185124,1768575041524,-858.64883647,0.000179,2]
[402185126,1768575041533,-1000.0,0.000179,2]
[402185128,1768575041543,-25000.0,0.000179,3]
[402185130,1768575041551,-158.24114685,0.000179,2]
[402185131,1768575041560,-4038.79080693,0.000179,2]
[402185133,1768575041570,-988.42027628,0.000179,2]
[402185135,1768575041579,-7372.84560819,0.000179,2]
[402185137,1768575041588,-374.90847884,0.000179,2]
[402185139,1768575041598,-2000.0,0.0001793,2]
[402185140,1768575041607,-1000.0,0.0001797,2]
[402185142,1768575041617,-801.43796078,0.0001797,2]
[402185144,1768575041627,-1803.47014443,0.0001797,2]
[402185146,1768575041636,-500.0,0.0001797,2]
[402185147,1768575041646,-1000.0,0.0001797,2]
[402185149,1768575041655,-2000.0,0.0001798,2]
[402185151,1768575041665,-168.0,0.00017982,2]
[402185154,1768575041683,-4128.7691159,0.00017982,2]
[402185155,1768575041693,-164.8925151,0.00017982,2]
[402185157,1768575041702,-3131.4331162,0.00017982,2]
[402185159,1768575041712,-610.77311459,0.0001799,2]
[402185161,1768575041723,-610.77311459,0.0001799,2]
[402185163,1768575041733,-610.77311459,0.0001799,2]
[402185164,1768575041742,-3154.8823578,0.00017999,2]
[402185166,1768575041752,-155.0,0.00017999,2]
[402185168,1768575041761,-101704.0414387,0.00017999,2]
[402185170,1768575041771,-174.13032849,0.00017999,2]
[402185172,1768575041780,-195.95160404,0.00017999,2]
[402185173,1768575041789,-500.0,0.00017999,2]
[402185175,1768575041798,-230.75326705,0.00017999,2]
[402185177,1768575041809,-304.44208798,0.00017999,2]
[402185179,1768575041819,-500.0,0.00017999,2]
[402185181,1768575041838,-2961.0,0.00018,2]
[402185183,1768575041848,-150.0,0.00018,2]
[402185184,1768575041857,-6611063.36889728,0.00018,2]
[402185277,1768575043193,-32676.42857622,0.00018,2]
[402185312,1768575043498,-7191.31229662,0.00018,2]
[402185315,1768575043521,-1904.94,0.00016663,2]
[402185319,1768575043543,-3142.67598722,0.00016663,2]
[402185321,1768575043552,-644347.27497897,0.00018,2]
[402185602,1768575046163,-1166.43152022,0.00018,2]
[402185604,1768575046174,-3923.88066368,0.00018,2]
[402185606,1768575046300,-450.68,0.00018,2]
[402185607,1768575046312,-264389.57914429,0.00018,2]
[402185621,1768575046476,-561.54357013,0.00018,2]
[402185794,1768575298534,600.0,0.00030136,120]
[402185795,1768575343500,3397.69,0.00013535,2]
[402185796,1768575343603,1117.45,0.00013535,2]
[402185798,1768575433874,-300.0,0.00015538,2]
[402185799,1768575433901,-300.0,0.00015538,2]
[402185800,1768575433927,-1000.0,0.00015539,2]
[402185801,1768575433953,-759.5531,0.00015539,2]
[402185802,1768575433980,-10708.0609,0.00015539,2]
[402185803,1768575434009,-4853.93011372,0.00015539,2]
[402185804,1768575434037,-171.72976731,0.00015539,2]
[402185805,1768575434071,-5219.28880393,0.00015539,2]
[402185806,1768575434099,-216.26951649,0.00015539,2]
[402185807,1768575434125,-300.0,0.00015637,2]
[402185808,1768575434152,-300.0,0.00015637,2]
[402185809,1768575434182,-1200.0,0.00015637,2]
[402185810,1768575434210,-500.0,0.00015638,2]
[402185811,1768575434239,-174.13032849,0.00015638,2]
[402185812,1768575434270,-195.95160404,0.00015638,2]
[402185813,1768575434299,-230.75326705,0.00015638,2]
[402185814,1768575434330,-500.0,0.00015638,2]
[402185815,1768575434361,-444.50279354,0.00015638,2]
[402185816,1768575434394,-500.0,0.00015638,2]
[402185817,1768575434426,-500.0,0.00015638,2]
[402185818,1768575434456,-500.0,0.00015638,2]
[402185819,1768575434488,-176.06935627,0.00015638,2]
[402185820,1768575434518,-500.0,0.00015638,2]
[402185821,1768575434557,-500.0,0.00015638,2]
[402185822,1768575434589,-500.0,0.00015638,2]
[402185823,1768575434619,-500.0,0.00015638,2]
[402185824,1768575434650,-500.0,0.00015638,2]
[402185825,1768575434675,-280.21079314,0.00015638,2]
[402185826,1768575434701,-250.0,0.00015638,2]
[402185827,1768575434727,-195.0,0.00015638,2]
[402185828,1768575435042,-376.36599667,0.00015638,2]
[402185829,1768575435073,-2500.0,0.00015638,2]
[402185830,1768575435099,-193.0,0.00015638,2]
[402185831,1768575435129,-50155.18365935,0.00015639,2]
[402185832,1768575468138,-400.43092356,0.00015539,2]
[402185833,1768575468175,-949844.81634065,0.00015639,2]
[402185834,1768575468203,-2500.0,0.00015639,2]
[402185835,1768575468234,-1362.3845,0.00015639,2]
[402185836,1768575526561,573.0,0.0002,30]
[402185838,1768575693695,1437.837,0.00015228,2]
[402185839,1768575693865,181.026,0.00015228,2]
[402185840,1768575705450,300.0,0.0003,120]
[402185841,1768575719609,200.0,0.0003,120]
[402185842,1768575753832,600.0,0.00030136,120]
[402185843,1768575809362,334.64,0.00015529,3]
[402185844,1768575810117,-195.0,0.00015361,2]
[402185845,1768575813003,-360.97001036,0.00015361,2]
[402185846,1768575814508,-169.223,0.00015361,2]
[402185847,1768575827161,1927.66318088,0.00015538,5]
[402185848,1768575855609,-286.28848714,0.00015339,2]
[402185849,1768575870279,188.068831,0.00015262,2]
[402185850,1768575870712,7075.618169,0.00014998,2]
[402185851,1768575870733,3324.411831,0.00014998,2]
[402185852,1768575886674,-213.71151286,0.00015339,2]
[402185853,1768575886697,-300.0,0.00015438,2]
[402185854,1768575886720,-300.0,0.00015438,2]
[402185855,1768575886745,-195.0,0.00015438,2]
[402185856,1768575886767,-300.0,0.00015438,2]
[402185857,1768575886790,-158.11278045,0.00015439,2]
[402185858,1768575886814,-4697.35992351,0.00015439,2]
[402185859,1768575886837,-530.42704306,0.00015439,2]
[402185860,1768575886861,-4368.53710233,0.00015439,2]
[402185861,1768575886884,-266.95394904,0.00015439,2]
[402185862,1768575886911,-195.0,0.00015446,2]
[402185863,1768575886936,-300.0,0.00015478,2]
[402185864,1768575886959,-300.0,0.00015478,2]
[402185865,1768575886984,-150.0,0.00015537,2]
[402185866,1768575887007,-161.52728694,0.00015538,2]
[402185867,1768575887030,-500.0,0.00015538,2]
[402185868,1768575887052,-511.15195548,0.00015538,2]
[402185869,1768575887080,-500.0,0.00015538,2]
[402185870,1768575887109,-500.0,0.00015538,2]
[402185871,1768575887140,-500.0,0.00015538,2]
[402185872,1768575887167,-500.0,0.00015538,2]
[402185873,1768575887196,-594.32568896,0.00015538,2]
[402185874,1768575887225,-500.0,0.00015538,2]
[402185875,1768575887253,-500.0,0.00015538,2]
[402185876,1768575887280,-500.0,0.00015538,2]
[402185877,1768575887308,-500.0,0.00015538,2]
[402185878,1768575887335,-500.0,0.00015538,2]
[402185879,1768575887362,-432.91002904,0.00015538,2]
[402185880,1768575887385,-1200.0,0.00015538,2]
[402185881,1768575887407,-279.0,0.00015538,2]
[402185882,1768575887433,-195.0,0.00015538,2]
[402185883,1768575887461,-195.7224227,0.00015538,2]
[402185884,1768575887488,-979155.26030563,0.00015539,2]
[402185885,1768575892390,-20844.73969437,0.00015539,2]
[402185886,1768575892412,-217.71221348,0.00015539,2]
[402185887,1768575892439,-185.61166214,0.00015588,2]
[402185888,1768575953833,2000.0,0.00030136,120]
[402185889,1768575967852,2000.0,0.00030136,120]
[402185890,1768576045644,600.0,0.00030136,120]
[402185891,1768576047399,471.64,0.00015212,2]
[402185892,1768576170775,-500.0,0.00015339,2]
[402185893,1768576170799,-75.86637471,0.0001541,2]
[402185894,1768576173900,-268.65517765,0.0001541,2]
[402185895,1768576176580,-161.77021916,0.00015395,2]
[402185896,1768576181544,-395.97162281,0.00015395,2]
[402185897,1768576184222,-176.61510817,0.00015395,2]
[402185899,1768576215596,10000.01,0.00015012,2]
[402185900,1768576215619,10000.01,0.00015012,2]
[402185901,1768576215642,10000.01,0.00015012,2]
[402185902,1768576215664,10000.01,0.00015012,2]
[402185903,1768576215688,10000.01,0.00015012,2]
[402185904,1768576215711,10000.01,0.00015012,2]
[402185905,1768576215732,6203.948169,0.00015012,2]
[402185906,1768576215752,10000.0,0.00015012,2]
[402185907,1768576216375,-198.43470715,0.00015012,2]
[402185908,1768576223091,-579.56529285,0.00015012,2]
[402185909,1768576226865,-205.11509146,0.00015012,2]
[402185910,1768576231174,-275.0,0.00015012,2]
[402185912,1768576232267,-1926.82,0.00015012,2]
[402185913,1768576232323,-550.90319944,0.00015012,2]
[402185914,1768576232378,-1436.1235401,0.00015012,2]
[402185915,1768576232388,-233.3264599,0.00015395,2]
[402185916,1768576232400,-268.21187382,0.00015395,2]
[402185917,1768576232410,-300.0,0.00015395,2]
[402185918,1768576232421,-254.00269941,0.00015395,2]
[402185919,1768576232431,-278.0,0.00015395,2]
[402185920,1768576232441,-407.34670437,0.00015395,2]
[402185921,1768576232451,-300.0,0.00015409,2]
[402185922,1768576232461,-1200.0,0.00015409,2]
[402185923,1768576232477,-6610.2387224,0.0001541,2]
[402185924,1768576232493,-955.4655682,0.0001541,2]
[402185925,1768576232509,-1032.00616953,0.0001541,2]
[402185926,1768576232522,-6441.97767261,0.0001541,2]
[402185927,1768576232563,-24353.85790745,0.0001541,2]
[402185930,1768576238989,-55810.97243565,0.0001541,2]
[402185931,1768576239001,-356.0,0.0001551,2]
[402185932,1768576239019,-1003.99503423,0.00015587,2]
[402185933,1768576239046,-223.77471182,0.00015611,2]
[402185934,1768576239061,-277.19,0.000157,2]
[402185935,1768576239081,-300.0,0.00015711,2]
[402185936,1768576239095,-600.0,0.00015711,2]
[402185937,1768576239107,-195.0,0.00015711,2]
[402185938,1768576239120,-195.0,0.00015727,2]
[402185939,1768576239133,-150.0,0.00015772,2]
[402185940,1768576239145,-500.0,0.00015773,2]
[402185941,1768576239166,-500.0,0.00015773,2]
[402185942,1768576239178,-605.56754048,0.00015773,2]
[402185943,1768576239188,-500.0,0.00015773,2]
[402185944,1768576239201,-500.0,0.00015773,2]
[402185945,1768576239217,-500.0,0.00015773,2]
[402185946,1768576239230,-500.0,0.00015773,2]
[402185947,1768576239247,-500.0,0.00015773,2]
[402185948,1768576239263,-500.68402792,0.00015773,2]
[402185949,1768576239283,-500.0,0.00015773,2]
[402185950,1768576239294,-500.0,0.00015773,2]
[402185951,1768576239305,-339.76804836,0.00015773,2]
[402185952,1768576239316,-500.0,0.00015773,2]
[402185953,1768576239328,-4534.17084392,0.00015786,2]
[402185954,1768576239360,-891870.996,0.00015886,2]
[402185955,1768576239371,-4534.17084389,0.00016021,2]
[402185956,1768576239386,-150.0,0.00016121,2]
[402185957,1768576239399,-18469.49097388,0.00016132,2]
[402185958,1768576239412,-223.77471181,0.00016159,2]
[402185959,1768576239433,-500.0,0.00016164,2]
[402185960,1768576239445,-150.0,0.00016164,2]
[402185961,1768576239465,-2423.27,0.00016192,2]
[402185962,1768576239476,-500.0,0.00016219,2]
[402185963,1768576239487,-150.0,0.00016219,2]
[402185964,1768576239498,-4534.17084389,0.00016256,2]
[402185965,1768576239509,-500.0,0.00016274,2]
[402185966,1768576239520,-150.0,0.00016274,2]
[402185967,1768576239535,-3240.0,0.0001628,2]
[402185968,1768576239546,-1000.0,0.00016321,2]
[402185969,1768576239557,-949.54518,0.00016321,2]
[402185970,1768576239568,-1000.0,0.00016321,2]
[402185971,1768576239578,-796.26278679,0.00016321,2]
[402185972,1768576239589,-500.0,0.00016321,2]
[402185973,1768576239602,-1000.0,0.00016321,2]
[402185974,1768576239613,-831.12856944,0.00016321,2]
[402185975,1768576239624,-1000.0,0.00016321,2]
[402185976,1768576239635,-500.0,0.00016321,2]
[402185977,1768576239646,-500.0,0.00016321,2]
[402185978,1768576239657,-150.0,0.00016328,2]
[402185979,1768576239668,-150.14666215,0.00016328,2]
[402185980,1768576239923,-3564.85,0.00016372,2]
[402185981,1768576239950,-392.65,0.00016402,2]
[402185982,1768576239960,-157.052,0.00016433,2]
[402185983,1768576239971,-500.0,0.00016438,2]
[402185984,1768576239981,-500.0,0.00016438,2]
[402185985,1768576239993,-500.0,0.00016438,2]
[402185986,1768576240004,-500.0,0.00016438,2]
[402185987,1768576240015,-500.0,0.00016438,2]
[402185988,1768576240026,-200.0,0.00016438,2]
[402185989,1768576240040,-500.0,0.00016438,2]
[402185990,1768576240051,-500.0,0.00016438,2]
[402185991,1768576240061,-500.0,0.00016438,2]
[402185992,1768576240072,-500.0,0.00016438,2]
[402185993,1768576240083,-500.0,0.00016438,2]
[402185994,1768576240093,-500.0,0.00016438,2]
[402185995,1768576240104,-500.0,0.00016438,2]
[402185996,1768576240114,-500.0,0.00016438,2]
[402185997,1768576240125,-500.0,0.00016438,2]
[402185998,1768576240135,-500.0,0.00016438,2]
[402185999,1768576240146,-174.43549336,0.00016438,2]
[402186000,1768576240156,-500.0,0.00016438,2]
[402186001,1768576240167,-500.0,0.00016438,2]
[402186002,1768576240177,-1044.59,0.00016438,2]
[402186003,1768576240188,-251.71572117,0.00016438,2]
[402186004,1768576240198,-4534.17084389,0.00016491,2]
[402186005,1768576240209,-500.0,0.00016575,2]
[402186006,1768576240220,-500.0,0.00016595,2]
[402186007,1768576240230,-168.0,0.00016602,2]
[402186008,1768576240240,-1044.59,0.00016712,2]
[402186009,1768576240251,-4534.17084389,0.00016726,2]
[402186010,1768576240261,-1123.88081114,0.00016744,2]
[402186015,1768576241275,-827.5461195,0.00016744,2]
[402186016,1768576241285,-118.54351965,0.00016805,2]
[402186017,1768576241298,-179.62648035,0.00016805,2]
[402186018,1768576241308,-181.42,0.00016805,2]
[402186019,1768576241317,-278.0,0.00016857,2]
[402186020,1768576241327,-279.02071278,0.00016868,2]
[402186021,1768576241341,-199.70688493,0.00016868,2]
[402186022,1768576241352,-500.0,0.00016868,2]
[402186024,1768576241361,-2500.0,0.00016873,2]
[402186026,1768576241371,-200.0,0.00016873,2]
[402186028,1768576241380,-600.0,0.00016873,2]
[402186030,1768576241392,-300.0,0.00016873,2]
[402186032,1768576241401,-250.0,0.00016873,2]
[402186034,1768576241411,-195.0,0.00016873,2]
[402186036,1768576241420,-75.82632194,0.00016881,2]
[402186080,1768576241846,-92.17367806,0.00016881,2]
[402186082,1768576241855,-152.18662444,0.00016882,2]
[402186084,1768576241865,-328.47875982,0.000169,2]
[402186086,1768576241876,-1653.862203,0.000169,2]
[402186088,1768576241887,-465.57725005,0.000169,2]
[402186118,1768576242152,-950.0,0.000169,2]
[402186120,1768576242164,-663.98587791,0.000169,2]
[402186126,1768576242207,-5482.28641022,0.000169,2]
[402186128,1768576242216,-250.0,0.00016905,2]
[402186130,1768576242225,-250.0,0.00016934,2]
[402186132,1768576242235,-300.0,0.00016934,2]
[402186134,1768576242244,-1680.0,0.00016942,2]
[402186136,1768576242254,-4534.17084389,0.0001696,2]
[402186138,1768576242263,-168.0,0.00016982,2]
[402186139,1768576242272,-1044.59,0.00016986,2]
[402186142,1768576242282,-168.0,0.00017035,2]
[402186144,1768576242293,-208.94105242,0.00017069,2]
[402186146,1768576242303,-150.0,0.00017099,2]
[402186148,1768576242313,-2958.0,0.00017099,2]
[402186150,1768576242322,-429.2349835,0.00017099,2]
[402186152,1768576242333,-574.12855637,0.00017099,2]
[402186153,1768576242343,-250.0,0.00017099,2]
[402186155,1768576242352,-250.0,0.00017099,2]
[402186158,1768576242361,-250.0,0.00017099,2]
[402186160,1768576242371,-250.0,0.00017099,2]
[402186161,1768576242380,-194.47326383,0.00017099,2]
[402186163,1768576242389,-250.0,0.00017099,2]
[402186165,1768576242399,-250.0,0.00017099,2]
[402186167,1768576242408,-250.0,0.00017099,2]
[402186169,1768576242418,-250.0,0.00017099,2]
[402186171,1768576242427,-250.0,0.00017099,2]
[402186173,1768576242437,-250.0,0.00017099,2]
[402186175,1768576242446,-250.0,0.00017099,2]
[402186177,1768576242455,-689.66878,0.00017099,2]
[402186180,1768576242464,-500.0,0.00017099,2]
[402186182,1768576242474,-427.83577414,0.00017099,2]
[402186183,1768576242482,-379.6081,0.00017129,2]
[402186185,1768576242493,-171.72976729,0.00017129,2]
[402186187,1768576242502,-500.0,0.00017142,2]
[402186190,1768576242511,-420.0,0.00017182,2]
[402186191,1768576242522,-168.0,0.00017187,2]
[402186194,1768576242535,-4534.17084389,0.00017195,2]
[402186196,1768576242544,-310.44691185,0.00017205,2]
[402186198,1768576242553,-15610.0,0.00017229,2]
[402186200,1768576242563,-1044.59,0.0001726,2]
[402186202,1768576242572,-168.0,0.00017266,2]
[402186203,1768576242581,-683.29732537,0.0001728,3]
[402186205,1768576242590,-600.0,0.00017282,2]
[402186207,1768576242601,-195.0,0.00017282,2]
[402186209,1768576242610,-195.0,0.00017282,2]
[402186211,1768576242619,-193.0,0.00017282,2]
[402186213,1768576242628,-300.0,0.00017282,2]
[402186215,1768576242637,-300.0,0.00017282,2]
[402186217,1768576242646,-168.0,0.00017304,2]
[402186219,1768576242656,-168.0,0.0001731,2]
[402186221,1768576242664,-150.0,0.00017315,2]
[402186222,1768576242674,-150.0,0.0001737,2]
[402186223,1768576242683,-172.0,0.00017389,2]
[402186224,1768576242692,-500.0,0.00017416,2]
[402186225,1768576242705,-150.0,0.00017425,2]
[402186226,1768576242715,-4534.17084389,0.0001743,2]
[402186227,1768576242724,-500.0,0.00017452,2]
[402186228,1768576242732,-627.14,0.00017469,2]
[402186229,1768576242742,-150.0,0.00017479,2]
[402186230,1768576242751,-1504.0,0.000175,2]
[402186231,1768576242760,-1044.59,0.00017534,2]
[402186232,1768576242769,-502.33,0.000176,2]
[402186233,1768576242779,-485.2485,0.00017638,14]
[402186234,1768576242788,-165.51315466,0.0001764,2]
[402186235,1768576242798,-595.37131296,0.00017647,2]
[402186236,1768576242807,-4534.17084389,0.00017665,2]
[402186237,1768576242816,-2059.52,0.00017676,2]
[402186238,1768576242825,-500.0,0.0001769,2]
[402186239,1768576242834,-172.0,0.00017695,2]
[402186240,1768576242843,-172.0,0.00017741,2]
[402186241,1768576242852,-2439.0,0.00017759,2]
[402186242,1768576242861,-286.915,0.00017759,2]
[402186243,1768576242870,-6559.0,0.00017759,2]
[402186245,1768576242879,-334.307,0.00017791,2]
[402186246,1768576242889,-1660.0,0.000178,2]
[402186248,1768576242898,-1044.59,0.00017808,2]
[402186250,1768576242908,-666.66666,0.0001782,2]
[402186252,1768576242918,-666.66667,0.0001782,2]
[402186255,1768576242927,-610.77311459,0.00017881,2]
[402186257,1768576242937,-25000.0,0.00017891,3]
[402186258,1768576242946,-25000.0,0.00017891,3]
[402186260,1768576242955,-25000.0,0.000179,3]
[402186262,1768576242964,-162.68,0.000179,2]
[402186264,1768576242974,-25000.0,0.000179,3]
[402186266,1768576242983,-4368.53710227,0.000179,2]
[402186268,1768576242991,-22089.88701055,0.000179,3]
[402186271,1768576243002,-4534.17084389,0.000179,2]
[402186273,1768576243011,-2806.67435491,0.000179,2]
[402186275,1768576243021,-1538.314,0.00017926,2]
[402186277,1768576243029,-1000.0,0.00017926,2]
[402186279,1768576243039,-500.0,0.00017964,2]
[402186281,1768576243048,-1000.0,0.0001797,2]
[402186283,1768576243058,-500.0,0.0001797,2]
[402186285,1768576243067,-1000.0,0.0001797,2]
[402186287,1768576243076,-801.43796078,0.0001797,2]
[402186289,1768576243086,-1803.47014443,0.0001797,2]
[402186291,1768576243096,-610.77311459,0.0001799,2]
[402186293,1768576243105,-610.77311459,0.0001799,2]
[402186295,1768576243115,-14511.8646256,0.00017998,2]
[402186297,1768576243124,-3162.3316508,0.00017998,2]
[402186299,1768576243133,-155.0,0.00017999,2]
[402186333,1768576243393,-225.06357612,0.00017999,2]
[402186335,1768576243404,-500.0,0.00017999,2]
[402186337,1768576243413,-201.82627964,0.00017999,2]
[402186339,1768576243423,-500.0,0.00017999,2]
[402186341,1768576243432,-511.63328925,0.00017999,2]
[402186343,1768576243441,-500.0,0.00017999,2]
[402186345,1768576243450,-486.66435485,0.00017999,2]
[402186347,1768576243459,-6162463.53427648,0.00018,2]
[402186349,1768576243468,-151.1632,0.00018,2]
[402186351,1768576243477,-485059.01995027,0.00018,2]
[402186388,1768576243824,-1.7e-07,0.00018,2]
[402186394,1768576243871,-1189.61389996,0.00018,2]
[402186464,1768576244501,-1664.137,0.00018,2]
[402186730,1768576247319,-151.0,0.00016829,2]
[402186732,1768576247328,-1282.0,0.00018,2]
[402186737,1768576247360,-23212.2891399,0.00018,2]
[402186761,1768576247580,-307.00000001,0.00018,2]
[402186763,1768576247591,-6885.02757253,0.00018,2]
[402186786,1768576247797,-768.0307529,0.00018,2]
[402187027,1768576253406,0.03,0.000179,30]
[402187028,1768576253430,614.0505363,0.000179,30]
[402187029,1768576296451,3193.38,0.00030136,120]
[402187030,1768576497752,-192.0004,0.00015611,2]
[402187031,1768576497774,-300.0,0.00015772,2]
[402187032,1768576497795,-417.9996,0.00015773,2]
[402187033,1768576528019,156.34475753,0.00030137,120]
[402187034,1768576536683,156.34475753,0.00030137,120]
[402187035,1768576645409,600.0,0.00030136,120]
[402187036,1768576684375,-500.0,0.00015538,2]
[402187037,1768576684401,-500.0,0.00015538,2]
[402187038,1768576684427,-500.0,0.00015538,2]
[402187039,1768576684453,-500.0,0.00015538,2]
[402187040,1768576684478,-1200.0,0.00015772,2]
[402187041,1768576684502,-300.0,0.00015772,2]
[402187042,1768576684527,-250.0,0.00015772,2]
[402187043,1768576684550,-82.0004,0.00015773,2]
[402187044,1768576684574,-500.0,0.00015773,2]
[402187045,1768576684598,-500.0,0.00015773,2]
[402187046,1768576684622,-500.0,0.00015773,2]
[402187047,1768576684645,-500.0,0.00015773,2]
[402187048,1768576684672,-500.0,0.00015773,2]
[402187049,1768576684696,-500.0,0.00015773,2]
[402187050,1768576684721,-500.0,0.00015773,2]
[402187051,1768576684755,-434.39659156,0.00015808,2]
[402187052,1768576684778,-250.0,0.0001584,2]
[402187053,1768576684804,-250.0,0.00015884,2]
[402187054,1768576684827,-266.31,0.00015885,2]
[402187055,1768576684855,-500.0,0.00015885,2]
[402187056,1768576684883,-500.0,0.00015885,2]
[402187057,1768576684911,-500.0,0.00015885,2]
[402187058,1768576684938,-500.0,0.00015885,2]
[402187059,1768576684969,-500.0,0.00015885,2]
[402187060,1768576684998,-500.0,0.00015885,2]
[402187061,1768576685027,-500.0,0.00015885,2]
[402187062,1768576685055,-500.0,0.00015885,2]
[402187063,1768576685083,-500.0,0.00015885,2]
[402187064,1768576685112,-500.0,0.00015885,2]
[402187065,1768576685141,-500.0,0.00015885,2]
[402187066,1768576685170,-500.0,0.00015885,2]
[402187067,1768576685198,-500.0,0.00015885,2]
[402187068,1768576685227,-500.0,0.00015885,2]
[402187069,1768576685254,-500.0,0.00015885,2]
[402187070,1768576685282,-500.0,0.00015885,2]
[402187071,1768576685309,-429.98297564,0.00015885,2]
[402187072,1768576685337,-500.0,0.00015885,2]
[402187073,1768576685365,-500.0,0.00015885,2]
[402187074,1768576685393,-500.0,0.00015885,2]
[402187075,1768576685422,-500.0,0.00015885,2]
[402187076,1768576685451,-500.0,0.00015885,2]
[402187077,1768576685480,-500.0,0.00015885,2]
[402187078,1768576685504,-500.0,0.00015885,2]
[402187079,1768576685534,-137679.0238,0.00015886,2]
[402187080,1768576685557,-348.62,0.00015948,2]
[402187081,1768576685623,199.0,0.00015771,2]
[402187082,1768576697014,331.12856944,0.00015773,2]
[402187083,1768576698662,500.0,0.00015773,2]
[402187084,1768576745267,1126.8122243,0.00015974,2]
[402187085,1768576749109,449.54518,0.00015773,2]
[402187086,1768576754545,296.26278679,0.00015773,2]
[402187087,1768576759425,500.0,0.00015885,2]
[402187088,1768576759691,500.0,0.00015885,2]
[402187089,1768576760134,201.82627964,0.00015885,2]
[402187090,1768576761748,337405.09119263,0.00015786,2]
[402187091,1768576798807,-273.97680057,0.00015774,2]
[402187092,1768576798836,-343231.44750737,0.00015786,2]
[402187093,1768576798861,-478.19006308,0.00015999,2]
[402187094,1768576808688,500.0,0.00015773,2]
[402187095,1768576809658,372.89690242,0.00015773,2]
[402187096,1768576813481,500.63366997,0.00015773,2]
[402187097,1768576814627,503.82347993,0.00015773,2]